bitfinex/quotes_BTCUSD_20250114
["timestamp","ask_amount","ask_price","bid_price","bid_amount"]
[1736892592532,0.0008536,96679.0,96677.0,0.291474]
[1736892592728,0.0008536,96679.0,96677.0,0.34341745]
[1736892593302,0.0008536,96679.0,96677.0,0.37566876]
[1736892595328,0.0008536,96679.0,96677.0,0.38587944]
[1736892595498,0.0008536,96679.0,96677.0,0.43387944]
[1736892600478,0.0008536,96679.0,96677.0,0.43287944]
[1736892600774,0.0008536,96679.0,96677.0,0.43487944]
[1736892601535,0.0008536,96679.0,96677.0,0.53810636]
[1736892601923,0.0008536,96679.0,96677.0,0.54110636]
[1736892602655,0.00074758,96678.0,96677.0,0.54110636]
[1736892603013,0.00074758,96678.0,96677.0,0.67977443]
[1736892603808,0.00074758,96678.0,96677.0,0.54110636]
[1736892604529,0.00074758,96678.0,96677.0,0.342474]
[1736892604740,0.00074758,96678.0,96677.0,0.47936476]
[1736892605311,0.00074758,96678.0,96677.0,0.294474]
[1736892606107,0.00074758,96678.0,96677.0,0.29626593]
[1736892607732,0.00074758,96678.0,96677.0,0.2960976]
[1736892607978,0.00074758,96678.0,96677.0,0.00679193]
[1736892608756,0.00074758,96678.0,96677.0,0.00379193]
[1736892608980,0.00074758,96678.0,96677.0,0.00579193]
[1736892609190,0.00074758,96678.0,96677.0,0.00379193]
[1736892609672,0.00074758,96678.0,96677.0,0.00279193]
[1736892610201,0.00074758,96678.0,96677.0,0.00379193]
[1736892610418,0.00074758,96678.0,96677.0,0.00479193]
[1736892612779,0.0215934,96678.0,96677.0,0.00479193]
[1736892613390,0.00074758,96678.0,96677.0,0.00479193]
[1736892617970,0.20761958,96678.0,96677.0,0.00479193]
[1736892618171,0.00074758,96678.0,96677.0,0.00479193]
[1736892618376,0.20865561,96678.0,96677.0,0.00479193]
[1736892618575,0.20761958,96678.0,96677.0,0.00479193]
[1736892618989,0.20761958,96678.0,96677.0,0.00179193]
[1736892619237,0.20761958,96678.0,96677.0,0.00279193]
[1736892619699,0.20761958,96678.0,96677.0,0.00379193]
[1736892620103,0.20761958,96678.0,96677.0,0.00279193]
[1736892620263,0.20761958,96678.0,96677.0,0.00479193]
[1736892620688,0.277359,96678.0,96677.0,0.00479193]
[1736892621081,0.28753993,96678.0,96677.0,0.00479193]
[1736892621806,0.277359,96678.0,96677.0,0.00479193]
[1736892622260,0.20761958,96678.0,96677.0,0.00479193]
[1736892638837,0.20761958,96678.0,96677.0,0.00379193]
[1736892639039,0.21341958,96678.0,96677.0,0.00179193]
[1736892639355,0.21441958,96678.0,96677.0,0.00179193]
[1736892641636,0.20861958,96678.0,96677.0,0.00179193]
[1736892642684,0.38533053,96678.0,96677.0,0.00179193]
[1736892642884,0.9423945,96678.0,96677.0,0.00179193]
[1736892643287,0.7767465,96678.0,96677.0,0.00179193]
[1736892644545,0.7757465,96678.0,96677.0,0.00179193]
[1736892644762,0.7867465,96678.0,96677.0,0.00179193]
[1736892651318,0.8791456,96678.0,96677.0,0.00179193]
[1736892651517,0.89536736,96678.0,96677.0,0.00179193]
[1736892651724,0.99959428,96678.0,96677.0,0.00179193]
[1736892654174,0.90719518,96678.0,96677.0,0.00179193]
[1736892655720,0.80296826,96678.0,96677.0,0.00179193]
[1736892657599,0.94156692,96678.0,96677.0,0.00179193]
[1736892658775,0.80296826,96678.0,96677.0,0.00179193]
[1736892661378,0.80779434,96678.0,96677.0,0.00179193]
[1736892663180,0.94709166,96678.0,96677.0,0.00179193]
[1736892664090,0.97121858,96678.0,96677.0,0.00179193]
[1736892664236,0.92301858,96678.0,96677.0,0.00179193]
[1736892665496,0.78372126,96678.0,96677.0,0.00179193]
[1736892666945,0.92307497,96678.0,96677.0,0.00179193]
[1736892669906,0.91727497,96678.0,96677.0,0.00179193]
[1736892670124,0.81304805,96678.0,96677.0,0.00179193]
[1736892670332,0.80258629,96678.0,96677.0,0.00179193]
[1736892670544,0.75614552,96678.0,96677.0,0.00179193]
[1736892671435,0.66323258,96678.0,96677.0,0.00179193]
[1736892679835,0.65747258,96678.0,96677.0,0.00179193]
[1736892680199,0.01657366,96678.0,96677.0,0.08079193]
[1736892680595,0.01657366,96678.0,96677.0,0.24219488]
[1736892680724,0.01657366,96678.0,96677.0,0.39116066]
[1736892680923,0.09291294,96682.0,96681.0,0.356865]
[1736892680924,0.04291294,96682.0,96681.0,0.356865]
[1736892681168,0.04291294,96682.0,96681.0,0.68449909]
[1736892681377,0.12396525,96710.0,96683.0,0.079]
[1736892681550,0.12396525,96710.0,96698.0,0.206829]
[1736892681754,0.00100222,96699.0,96698.0,0.285829]
[1736892683570,0.00200222,96699.0,96698.0,0.285829]
[1736892683722,0.00200222,96699.0,96698.0,0.32702508]
[1736892684132,0.00400222,96699.0,96698.0,0.285829]
[1736892684332,0.00100222,96699.0,96698.0,0.287829]
[1736892684543,0.00100222,96699.0,96698.0,0.289829]
[1736892696460,0.00100222,96699.0,96698.0,0.083]
[1736892696821,0.00100222,96699.0,96698.0,0.004]
[1736892697023,0.10626517,96699.0,96698.0,0.004]
[1736892697207,0.24626833,96699.0,96698.0,0.004]
[1736892697410,0.2452323,96699.0,96698.0,0.004]
[1736892697658,0.2452323,96699.0,96698.0,0.002]
[1736892697900,0.1,96692.0,96677.0,0.00179193]
[1736892698099,0.16210462,96687.0,96677.0,0.00179193]
[1736892698437,0.206872,96678.0,96677.0,0.00179193]
[1736892699085,0.31109892,96678.0,96677.0,0.00179193]
[1736892700303,0.44279892,96678.0,96677.0,0.00179193]
[1736892700515,0.44279892,96678.0,96677.0,0.00279193]
[1736892700714,0.51776561,96678.0,96677.0,0.00179193]
[1736892701144,0.52276561,96678.0,96677.0,0.00179193]
[1736892702466,0.85256561,96678.0,96677.0,0.00179193]
[1736892702988,0.86281986,96678.0,96677.0,0.00179193]
[1736892703489,0.78785317,96678.0,96677.0,0.00179193]
[1736892707929,0.88785317,96678.0,96677.0,0.00179193]
[1736892709233,0.88585317,96678.0,96677.0,0.00179193]
[1736892709778,0.88885317,96678.0,96677.0,0.00179193]
[1736892710177,0.88385317,96678.0,96677.0,0.00179193]
[1736892710671,0.89185317,96678.0,96677.0,0.00279193]
[1736892716823,0.81125317,96678.0,96677.0,0.00279193]
[1736892723541,0.81701317,96678.0,96677.0,0.00279193]
[1736892726988,0.66215317,96678.0,96677.0,0.00279193]
[1736892737566,0.66202868,96678.0,96677.0,0.00279193]
[1736892739292,0.66778868,96678.0,96677.0,0.00279193]
[1736892744181,0.85258689,96678.0,96677.0,0.00279193]
[1736892744356,0.95681381,96678.0,96677.0,0.00279193]
[1736892746143,0.85258689,96678.0,96677.0,0.00279193]
[1736892746616,0.66778868,96678.0,96677.0,0.00279193]
[1736892748019,0.66864208,96678.0,96677.0,0.00279193]
[1736892751668,0.85501908,96678.0,96677.0,0.00279193]
[1736892753027,0.66864208,96678.0,96677.0,0.00279193]
[1736892753197,0.772869,96678.0,96677.0,0.00279193]
[1736892753715,0.85501908,96678.0,96677.0,0.00279193]
[1736892757445,1.15011908,96678.0,96677.0,0.00279193]
[1736892757778,0.98674208,96678.0,96677.0,0.00279193]
[1736892757954,1.16334208,96678.0,96677.0,0.00279193]
[1736892758208,1.16334208,96678.0,96677.0,9.3e-07]
[1736892758467,1.16334208,96678.0,96640.0,0.08439277]
[1736892758468,0.206938,96648.0,96642.0,0.09229897]
[1736892758680,0.206944,96645.0,96642.0,0.09229897]
[1736892759262,0.206944,96645.0,96640.0,0.08439277]
[1736892759940,0.206945,96644.0,96640.0,0.08439277]
[1736892761019,0.206947,96643.0,96640.0,0.08439277]
[1736892761584,0.413895,96643.0,96640.0,0.08439277]
[1736892761793,0.02729796,96642.0,96640.0,0.08439277]
[1736892761997,0.206951,96641.0,96640.0,0.08439277]
[1736892762721,0.001,96643.0,96640.0,0.08439277]
[1736892763226,4.956e-05,96645.0,96642.0,0.0826]
[1736892764732,4.956e-05,96645.0,96642.0,0.0836]
[1736892765100,4.956e-05,96645.0,96642.0,0.0826]
[1736892765539,4.956e-05,96645.0,96642.0,0.0836]
[1736892765690,0.01054614,96645.0,96642.0,0.0836]
[1736892765890,4.956e-05,96645.0,96642.0,0.0836]
[1736892772410,4.956e-05,96645.0,96642.0,0.08539277]
[1736892778347,4.956e-05,96645.0,96643.0,0.206947]
[1736892778548,4.956e-05,96645.0,96644.0,0.12783466]
[1736892781261,4.956e-05,96645.0,96644.0,0.26701318]
[1736892781563,0.00104956,96645.0,96644.0,0.26597852]
[1736892781863,0.00204956,96645.0,96644.0,0.26897852]
[1736892784491,0.00204956,96645.0,96644.0,0.1298]
[1736892784691,0.00204956,96645.0,96644.0,0.13083447]
[1736892785451,0.00204956,96645.0,96644.0,0.23506139]
[1736892785789,0.00204956,96645.0,96644.0,0.23402692]
[1736892787647,0.00204956,96645.0,96644.0,0.3735152]
[1736892788098,0.00204956,96645.0,96644.0,0.26928828]
[1736892791759,0.00204956,96645.0,96644.0,0.1298]
[1736892792006,0.00204956,96645.0,96644.0,0.13083447]
[1736892794357,0.00204956,96645.0,96644.0,0.27032275]
[1736892794564,0.00204956,96645.0,96644.0,0.26928828]
[1736892794975,0.00204956,96645.0,96644.0,0.3735152]
[1736892795589,0.00204956,96645.0,96644.0,0.26928828]
[1736892795785,0.00204956,96645.0,96644.0,0.1298]
[1736892796001,0.00204956,96645.0,96644.0,0.13083447]
[1736892796578,0.00204956,96645.0,96644.0,0.13262724]
[1736892808326,0.00204956,96645.0,96644.0,0.08692724]
[1736892809234,0.00204956,96645.0,96644.0,0.17987044]
[1736892810986,0.00204956,96645.0,96644.0,0.08692724]
[1736892811210,0.00204956,96645.0,96644.0,0.11926302]
[1736892813494,0.00204956,96645.0,96644.0,0.2587513]
[1736892813688,0.00204956,96645.0,96644.0,0.25771683]
[1736892814918,0.00204956,96645.0,96644.0,0.11822855]
[1736892815136,0.00204956,96645.0,96644.0,0.11926303]
[1736892818553,0.00204956,96645.0,96644.0,0.30415379]
[1736892818759,0.00204956,96645.0,96644.0,0.30311931]
[1736892820410,0.00204956,96645.0,96644.0,0.11822855]
[1736892820612,0.00204956,96645.0,96644.0,0.11926303]
[1736892822017,0.00204956,96645.0,96644.0,0.35037648]
[1736892822217,0.00204956,96645.0,96644.0,0.349342]
[1736892823804,0.00204956,96645.0,96644.0,0.11822855]
[1736892823944,0.00204956,96645.0,96644.0,0.11926303]
[1736892844251,0.00204956,96645.0,96644.0,0.03816303]
[1736892901682,0.00204956,96645.0,96644.0,0.03712855]
[1736892901882,0.04894956,96645.0,96644.0,0.03712855]
[1736892902098,0.12834956,96645.0,96644.0,0.00479277]
[1736892902723,0.12734956,96645.0,96644.0,0.00479277]
[1736892903001,0.16190463,96645.0,96644.0,0.00479277]
[1736892903216,0.16290463,96645.0,96644.0,0.00479277]
[1736892903424,0.12734956,96645.0,96644.0,0.00179277]
[1736892903629,0.04794956,96645.0,96644.0,0.21173777]
[1736892904234,0.04794956,96645.0,96644.0,0.34856917]
[1736892904445,0.04694956,96645.0,96644.0,0.14162417]
[1736892904653,0.04794956,96645.0,96644.0,0.14162417]
[1736892904860,0.04794956,96645.0,96643.0,0.12132222]
[1736892905081,0.12634956,96645.0,96644.0,0.002]
[1736892905291,0.12734956,96645.0,96644.0,0.002]
[1736892905498,0.23157648,96645.0,96644.0,0.002]
[1736892905709,0.23057648,96645.0,96644.0,0.002]
[1736892905972,0.24175326,96645.0,96644.0,0.002]
[1736892906367,0.1263,96643.0,96642.0,0.00179277]
[1736892906570,0.23156295,96643.0,96642.0,0.00119277]
[1736892906776,0.23052692,96643.0,96642.0,0.00119277]
[1736892907806,0.3701345,96643.0,96642.0,0.00119277]
[1736892908218,0.3761345,96643.0,96642.0,0.00059277]
[1736892908420,0.58036142,96643.0,96642.0,0.00059277]
[1736892908600,0.58036142,96643.0,96610.0,0.207017]
[1736892908601,0.1263,96623.0,96610.0,0.20449787]
[1736892909806,0.1263,96623.0,96610.0,0.20649787]
[1736892910225,0.1263,96623.0,96614.0,0.207007]
[1736892910887,0.1263,96623.0,96611.0,0.207015]
[1736892911375,0.14816022,96623.0,96611.0,0.207015]
[1736892911594,0.1263,96623.0,96611.0,0.207015]
[1736892911815,0.1263,96623.0,96612.0,0.207013]
[1736892912989,0.1263,96623.0,96614.0,0.002]
[1736892913390,0.1263,96623.0,96612.0,0.207013]
[1736892913565,0.1263,96623.0,96612.0,0.209013]
[1736892913989,0.0334319,96622.0,96612.0,0.209013]
[1736892914304,0.0334319,96622.0,96612.0,0.207013]
[1736892914503,0.0334319,96622.0,96614.0,0.002]
[1736892915743,0.13677736,96623.0,96614.0,0.002]
[1736892916540,0.13677736,96623.0,96612.0,0.207013]
[1736892916686,0.13677736,96623.0,96612.0,0.209013]
[1736892917111,0.13677736,96623.0,96612.0,0.207013]
[1736892917509,0.13677736,96623.0,96614.0,0.002]
[1736892917723,0.13677736,96623.0,96615.0,0.207007]
[1736892918054,0.01378134,96622.0,96615.0,0.207007]
[1736892919227,0.01378134,96622.0,96612.0,0.002]
[1736892919651,0.01378134,96622.0,96611.0,0.207014]
[1736892919852,0.01378134,96622.0,96613.0,0.207011]
[1736892920071,0.01378134,96622.0,96615.0,0.002]
[1736892920269,0.13677736,96623.0,96615.0,0.002]
[1736892920270,0.01678229,96621.0,96615.0,0.002]
[1736892920472,0.01678229,96621.0,96613.0,0.207011]
[1736892922287,0.01678229,96621.0,96613.0,0.208011]
[1736892924496,0.01678229,96621.0,96613.0,0.001]
[1736892931030,0.206996,96620.0,96613.0,0.001]
[1736892931232,0.26383604,96620.0,96613.0,0.001]
[1736892931709,0.00901522,96619.0,96613.0,0.001]
[1736892931885,0.00901522,96619.0,96612.0,0.00179277]
[1736892932334,0.00901522,96619.0,96613.0,0.001]
[1736892932917,0.207,96618.0,96613.0,0.001]
[1736892933121,0.05345459,96617.0,96613.0,0.001]
[1736892933343,0.05345459,96617.0,96612.0,0.00179277]
[1736892934151,0.05331639,96617.0,96612.0,0.00179277]
[1736892934966,0.05331639,96617.0,96612.0,0.00279277]
[1736892935174,0.0088758,96617.0,96612.0,0.00279277]
[1736892935496,0.0088758,96617.0,96612.0,0.00179277]
[1736892935613,0.206996,96620.0,96612.0,0.00279277]
[1736892935813,0.00887578,96616.0,96612.0,0.00279277]
[1736892936044,0.206996,96620.0,96612.0,0.00279277]
[1736892936588,0.00887319,96619.0,96612.0,0.00179277]
[1736892937038,0.00887319,96619.0,96612.0,0.00228861]
[1736892937243,0.00887319,96619.0,96612.0,0.20930061]
[1736892937790,0.00887319,96619.0,96612.0,0.21030061]
[1736892938359,0.00887319,96619.0,96612.0,0.20930061]
[1736892938546,0.00887319,96619.0,96612.0,0.21030061]
[1736892939440,0.00887319,96619.0,96612.0,0.20930061]
[1736892940273,0.00987319,96619.0,96612.0,0.20930061]
[1736892941128,0.00987319,96619.0,96612.0,0.21030061]
[1736892941551,0.00987319,96619.0,96612.0,0.20930061]
[1736892941847,0.00887319,96619.0,96612.0,0.21030061]
[1736892946426,0.00887319,96619.0,96614.0,0.09277304]
[1736892946825,0.05508586,96618.0,96614.0,0.09277304]
[1736892947220,0.00888101,96617.0,96614.0,0.09277304]
[1736892947651,0.00888101,96617.0,96614.0,0.09377304]
[1736892948330,0.00888101,96617.0,96614.0,0.09277304]
[1736892948529,0.0008537,96620.0,96614.0,0.09377304]
[1736892948808,0.00888099,96616.0,96614.0,0.09377304]
[1736892948950,0.0008537,96620.0,96614.0,0.09377304]
[1736892949363,0.00973474,96619.0,96614.0,0.09377304]
[1736892950064,0.00973474,96619.0,96614.0,0.09277304]
[1736892950269,0.00973474,96619.0,96614.0,0.09377304]
[1736892950661,0.00973474,96619.0,96616.0,0.09277304]
[1736892951275,0.00973474,96619.0,96618.0,0.13915956]
[1736892952690,0.00973474,96619.0,96617.0,0.18554609]
[1736892953454,0.00973474,96619.0,96618.0,0.001]
[1736892953859,0.00973474,96619.0,96617.0,0.18554609]
[1736892954240,0.00973474,96619.0,96617.0,0.18654609]
[1736892955525,0.00973474,96619.0,96618.0,0.18554609]
[1736892956699,0.00973474,96619.0,96617.0,0.18554609]
[1736892956917,0.00973474,96619.0,96618.0,0.001]
[1736892957611,0.00973474,96619.0,96617.0,0.18554609]
[1736892957979,0.00973474,96619.0,96617.0,0.18654609]
[1736892961667,0.0008537,96619.0,96617.0,0.18654609]
[1736892963083,0.0088845,96618.0,96617.0,0.18654609]
[1736892963282,0.0008537,96619.0,96617.0,0.18654609]
[1736892963508,0.008847,96618.0,96617.0,0.18654609]
[1736892963808,0.0008537,96619.0,96617.0,0.18654609]
[1736892963967,0.0008537,96619.0,96617.0,0.18554609]
[1736892964144,0.008847,96618.0,96617.0,0.18554609]
[1736892964487,0.0008537,96619.0,96617.0,0.18554609]
[1736892964685,0.0008537,96619.0,96617.0,0.18654609]
[1736892964897,0.008847,96618.0,96617.0,0.18654609]
[1736892965098,0.0008537,96619.0,96617.0,0.18654609]
[1736892965299,0.008847,96618.0,96617.0,0.18654609]
[1736892965477,0.0008537,96619.0,96617.0,0.18654609]
[1736892965685,0.008847,96618.0,96617.0,0.18654609]
[1736892965898,0.0008537,96619.0,96617.0,0.18654609]
[1736892966101,0.00884703,96618.0,96617.0,0.18554609]
[1736892966304,0.0008537,96619.0,96617.0,0.18654609]
[1736892966506,0.00884703,96618.0,96617.0,0.001]
[1736892966708,0.0008537,96619.0,96617.0,0.001]
[1736892966885,0.00884703,96618.0,96615.0,0.23193261]
[1736892967085,0.0008537,96619.0,96615.0,0.23193261]
[1736892967338,0.00884703,96618.0,96615.0,0.23193261]
[1736892967514,0.0008537,96619.0,96617.0,0.18730558]
[1736892967688,0.00884703,96618.0,96617.0,0.18730558]
[1736892967903,0.0008537,96619.0,96617.0,0.18730558]
[1736892968155,0.00884703,96618.0,96617.0,0.18730558]
[1736892968623,0.0008537,96619.0,96617.0,0.18730558]
[1736892968984,0.00884703,96618.0,96617.0,0.18730558]
[1736892969392,0.0008537,96619.0,96617.0,0.18730558]
[1736892969781,0.0084087,96618.0,96617.0,0.18630558]
[1736892970396,0.0008537,96619.0,96617.0,0.18630558]
[1736892970822,0.0084087,96618.0,96617.0,0.18630558]
[1736892971168,0.0008537,96619.0,96617.0,0.001]
[1736892971643,0.0008537,96619.0,96616.0,0.18630558]
[1736892971978,0.0084087,96618.0,96617.0,0.001]
[1736892972354,0.0008537,96619.0,96617.0,0.001]
[1736892972719,0.00840139,96618.0,96617.0,0.001]
[1736892972956,0.0008537,96619.0,96617.0,0.001]
[1736892973445,0.00840139,96618.0,96616.0,0.18630558]
[1736892973802,0.0008537,96619.0,96616.0,0.18730558]
[1736892974134,0.0008537,96619.0,96616.0,0.18630558]
[1736892974321,0.00840139,96618.0,96617.0,0.00179277]
[1736892974494,0.00840139,96618.0,96617.0,0.00279277]
[1736892974657,0.0008537,96619.0,96617.0,0.00279277]
[1736892974855,0.0008537,96619.0,96617.0,0.00179277]
[1736892975059,0.00840139,96618.0,96617.0,0.00179277]
[1736892975463,0.0008537,96619.0,96617.0,0.00179277]
[1736892975757,0.00840139,96618.0,96617.0,0.00179277]
[1736892976156,0.0008537,96619.0,96617.0,0.00179277]
[1736892976316,0.00840139,96618.0,96617.0,0.00179277]
[1736892976515,0.0008537,96619.0,96617.0,0.00179277]
[1736892976719,0.00840139,96618.0,96617.0,0.00279277]
[1736892976902,0.0008537,96619.0,96617.0,0.00279277]
[1736892977102,0.00840139,96618.0,96617.0,0.00279277]
[1736892977304,0.0008537,96619.0,96617.0,0.00279277]
[1736892977502,0.00840139,96618.0,96617.0,0.00179277]
[1736892977752,0.0008537,96619.0,96617.0,0.00279277]
[1736892977961,0.00828639,96618.0,96617.0,0.00279277]
[1736892979955,0.00828639,96618.0,96617.0,0.00179277]
[1736892980412,0.00828639,96618.0,96617.0,0.00279277]
[1736892980836,0.00828639,96618.0,96617.0,0.00179277]
[1736892981138,0.00828639,96618.0,96617.0,0.00279277]
[1736892982958,0.11251331,96618.0,96617.0,0.18909835]
[1736892983174,0.37241865,96618.0,96617.0,0.18909835]
[1736892984466,0.37241865,96618.0,96617.0,0.00279277]
[1736892986434,0.31951331,96618.0,96617.0,0.00279277]
[1736892992704,0.00828639,96618.0,96617.0,0.00279277]
[1736892992960,0.00828639,96618.0,96617.0,0.10319277]
[1736892993232,0.0008537,96619.0,96617.0,0.15052777]
[1736892993483,0.0008537,96619.0,96618.0,0.30843481]
[1736892993760,0.0008537,96619.0,96618.0,0.49868163]
[1736892993985,0.0008537,96619.0,96618.0,0.68095011]
[1736892994432,0.0008537,96619.0,96618.0,0.78095011]
[1736892995255,0.0018537,96619.0,96618.0,0.78195011]
[1736892996269,0.0018537,96619.0,96618.0,0.78295011]
[1736892996673,0.0008537,96619.0,96618.0,0.78095011]
[1736892997569,0.0018537,96619.0,96618.0,0.78795011]
[1736892997857,0.0018537,96619.0,96618.0,1.19873527]
[1736892998061,0.0028537,96619.0,96618.0,1.19973527]
[1736892998735,0.0028537,96619.0,96618.0,0.78895011]
[1736892998965,0.0028537,96619.0,96618.0,0.75668163]
[1736893002432,0.0028537,96619.0,96618.0,1.03465666]
[1736893003275,0.0028537,96619.0,96618.0,0.75668163]
[1736893013891,0.0028537,96619.0,96618.0,0.65668163]
[1736893014209,0.0028537,96619.0,96618.0,0.75668163]
[1736893023458,0.0028537,96619.0,96618.0,0.78886543]
[1736893031041,0.0028537,96619.0,96618.0,0.78866543]
[1736893031975,0.0028537,96619.0,96618.0,1.06641317]
[1736893033441,0.0028537,96619.0,96618.0,0.78866543]
[1736893037526,0.0028537,96619.0,96618.0,1.19877733]
[1736893038191,0.0028537,96619.0,96618.0,0.61126543]
[1736893039532,0.0028537,96619.0,96618.0,0.71126543]
[1736893039946,0.0028537,96619.0,96618.0,0.61126543]
[1736893040245,0.0028537,96619.0,96618.0,0.71126543]
[1736893040447,0.0028537,96619.0,96618.0,0.61126543]
[1736893040650,0.0028537,96619.0,96618.0,0.71126543]
[1736893044051,0.0008537,96620.0,96619.0,0.173]
[1736893044261,0.0008537,96620.0,96619.0,0.41467245]
[1736893044439,0.0008537,96620.0,96619.0,0.41363764]
[1736893046108,0.0018537,96620.0,96619.0,0.42063764]
[1736893046807,0.0018537,96620.0,96619.0,0.41363764]
[1736893047117,0.0008537,96620.0,96619.0,0.41963764]
[1736893047332,0.002,96620.0,96619.0,0.42163764]
[1736893047536,0.001,96620.0,96619.0,0.41963764]
[1736893047837,0.002,96620.0,96619.0,0.42263764]
[1736893050424,0.0008537,96623.0,96620.0,0.023]
[1736893050629,0.0008537,96623.0,96622.0,0.023]
[1736893050830,0.0008537,96623.0,96622.0,0.0551838]
[1736893051778,0.0008537,96623.0,96622.0,0.4121758]
[1736893051982,0.0018537,96623.0,96622.0,0.4121758]
[1736893052512,0.0018537,96623.0,96622.0,0.82615244]
[1736893052699,0.0018537,96623.0,96622.0,0.93037936]
[1736893052898,0.0028537,96623.0,96622.0,0.93637936]
[1736893054321,0.001,96623.0,96622.0,0.93637936]
[1736893055257,0.001,96623.0,96622.0,0.52440272]
[1736893055744,0.001,96623.0,96622.0,0.93637936]
[1736893056564,0.001,96623.0,96622.0,0.52440272]
[1736893057252,0.0018536,96623.0,96622.0,0.52440272]
[1736893058067,0.0008536,96623.0,96622.0,0.52440272]
[1736893061331,0.048,96633.0,96624.0,0.023]
[1736893061541,0.048,96633.0,96632.0,0.20697]
[1736893062614,0.049,96633.0,96632.0,0.20697]
[1736893064327,0.048,96633.0,96632.0,0.21097]
[1736893064779,0.049,96633.0,96632.0,0.21497]
[1736893066060,0.001,96633.0,96632.0,0.21497]
[1736893070008,0.001,96633.0,96632.0,0.21676193]
[1736893070415,0.0018533,96633.0,96632.0,0.21676193]
[1736893076308,0.0018533,96633.0,96632.0,0.00979193]
[1736893076507,0.0837533,96633.0,96632.0,0.00979193]
[1736893076710,0.09199071,96633.0,96632.0,0.00979193]
[1736893076912,0.0837533,96633.0,96632.0,0.00979193]
[1736893077328,0.0837533,96633.0,96632.0,0.19560506]
[1736893077947,0.0837533,96633.0,96632.0,0.10269439]
[1736893078493,0.0837533,96633.0,96632.0,0.00979193]
[1736893078663,0.09199071,96633.0,96632.0,0.00979193]
[1736893079485,0.0837533,96633.0,96632.0,0.00979193]
[1736893079662,0.09199071,96633.0,96632.0,0.00979193]
[1736893088249,0.00689175,96633.0,96632.0,0.00979193]
[1736893088493,0.00103603,96638.0,96632.0,0.00979193]
[1736893088705,0.10422692,96637.0,96632.0,0.00979193]
[1736893089081,0.00689178,96636.0,96632.0,0.00979193]
[1736893089917,0.00689178,96636.0,96632.0,0.00579193]
[1736893090127,0.00689178,96636.0,96632.0,0.00879193]
[1736893090470,0.00689178,96636.0,96632.0,0.00479193]
[1736893090672,0.00689178,96636.0,96632.0,0.00679193]
[1736893090902,0.00689178,96636.0,96632.0,0.00579193]
[1736893091219,0.00689178,96636.0,96632.0,0.01079193]
[1736893091414,0.00789178,96636.0,96632.0,0.01079193]
[1736893093696,0.01815713,96636.0,96632.0,0.01079193]
[1736893094035,0.01919316,96636.0,96632.0,0.01079193]
[1736893094267,0.01815713,96636.0,96632.0,0.01079193]
[1736893095159,0.01901043,96636.0,96632.0,0.01079193]
[1736893095370,0.00874508,96636.0,96632.0,0.01079193]
[1736893100357,0.04307263,96635.0,96632.0,0.01079193]
[1736893100598,0.00874508,96636.0,96632.0,0.01079193]
[1736893100770,0.0068918,96634.0,96632.0,0.01079193]
[1736893100975,0.0018533,96636.0,96632.0,0.01079193]
[1736893101175,0.00689178,96633.0,96632.0,0.00679193]
[1736893101394,0.0018533,96636.0,96632.0,0.00679193]
[1736893101594,0.00688573,96633.0,96632.0,0.00579193]
[1736893101795,0.0008533,96636.0,96632.0,0.01079193]
[1736893101796,0.001,96634.0,96632.0,0.01079193]
[1736893102001,0.00688573,96633.0,96632.0,0.01079193]
[1736893102236,0.00688573,96633.0,96632.0,0.00579193]
[1736893102435,0.00688573,96633.0,96632.0,0.01079193]
[1736893102620,0.001,96633.0,96632.0,0.01079193]
[1736893102818,0.00788573,96633.0,96632.0,0.00679193]
[1736893102981,0.001,96633.0,96632.0,0.00679193]
[1736893103175,0.00788573,96633.0,96632.0,0.01079193]
[1736893103477,0.00688573,96633.0,96632.0,0.00579193]
[1736893103737,0.0008533,96636.0,96632.0,0.00579193]
[1736893103890,0.00688573,96633.0,96632.0,0.00579193]
[1736893104098,0.0008533,96636.0,96632.0,0.00579193]
[1736893104398,0.00688576,96635.0,96632.0,0.00579193]
[1736893104798,0.001,96634.0,96632.0,0.01079193]
[1736893104998,0.00688576,96635.0,96632.0,0.00579193]
[1736893105232,0.00688573,96633.0,96632.0,0.00579193]
[1736893105836,0.001,96634.0,96632.0,0.01079193]
[1736893106042,0.00688573,96633.0,96632.0,0.00679193]
[1736893106199,0.00688573,96633.0,96632.0,0.00579193]
[1736893106404,0.00788573,96633.0,96632.0,0.01079193]
[1736893106606,0.001,96633.0,96632.0,0.01079193]
[1736893106832,0.00788573,96633.0,96632.0,0.00679193]
[1736893107015,0.001,96633.0,96632.0,0.01079193]
[1736893107217,0.00788573,96633.0,96632.0,0.01079193]
[1736893107451,0.001,96633.0,96632.0,0.01079193]
[1736893107697,0.00788573,96633.0,96632.0,0.00579193]
[1736893107860,0.0008533,96636.0,96632.0,0.00579193]
[1736893108067,0.00688573,96633.0,96632.0,0.00679193]
[1736893108282,0.0008533,96636.0,96632.0,0.00179193]
[1736893108492,0.00688573,96633.0,96632.0,0.00179193]
[1736893108656,0.00788573,96633.0,96632.0,0.00679193]
[1736893109335,0.00788573,96633.0,96632.0,0.34176193]
[1736893109536,0.00788573,96633.0,96632.0,0.34576193]
[1736893109712,0.001,96633.0,96632.0,0.36876193]
[1736893110907,0.001,96633.0,96632.0,0.36476193]
[1736893111587,0.001,96633.0,96632.0,0.66392168]
[1736893111752,0.002,96633.0,96632.0,0.67292168]
[1736893111968,0.002,96633.0,96632.0,0.7771486]
[1736893112509,0.001,96633.0,96632.0,0.7681486]
[1736893112712,0.0008533,96636.0,96635.0,0.379964]
[1736893112940,0.0008533,96636.0,96635.0,0.61219092]
[1736893113164,0.0008533,96636.0,96635.0,0.70258186]
[1736893113960,0.0008533,96636.0,96635.0,0.73779154]
[1736893114140,0.0008533,96636.0,96635.0,0.70558186]
[1736893114349,0.0008533,96636.0,96635.0,0.73477852]
[1736893114570,0.0008533,96636.0,96635.0,0.73477685]
[1736893114776,0.0008533,96636.0,96635.0,0.73977685]
[1736893115156,0.0008533,96636.0,96635.0,0.70758186]
[1736893115775,0.0018533,96636.0,96635.0,0.71658186]
[1736893116001,0.0008533,96636.0,96635.0,0.70758186]
[1736893116630,0.0008533,96636.0,96635.0,0.73975222]
[1736893116795,0.0008533,96636.0,96635.0,0.84875222]
[1736893117003,0.0018533,96636.0,96635.0,0.84875222]
[1736893119390,0.0018533,96636.0,96635.0,0.81658186]
[1736893120584,0.0018533,96636.0,96635.0,0.71658186]
[1736893120772,0.0018533,96636.0,96635.0,0.81658186]
[1736893123464,0.0018533,96636.0,96635.0,1.09418409]
[1736893124968,0.0018533,96636.0,96635.0,0.81658186]
[1736893131032,0.0018533,96636.0,96635.0,0.81837358]
[1736893133655,0.0018533,96636.0,96635.0,1.14407358]
[1736893142245,0.0018533,96636.0,96635.0,1.17624738]
[1736893150496,0.00177339,96636.0,96635.0,1.17624738]
[1736893150700,0.00177339,96636.0,96635.0,2.67624738]